bitfinex/quotes_SOLUSD_20240826
["timestamp","ask_amount","ask_price","bid_price","bid_amount"]
[1724684147481,6.3606,157.22,157.17,6.3625]
[1724684147680,20.0,157.21,157.17,6.3625]
[1724684149289,20.0,157.21,157.16,23.17104113]
[1724684152688,26.3609,157.21,157.16,23.17104113]
[1724684155173,26.3609,157.21,157.16,16.80814113]
[1724684157095,26.3609,157.21,157.16,23.17104113]
[1724684157996,20.0,157.21,157.17,6.3624]
[1724684159079,20.0,157.21,157.16,23.17094113]
[1724684160400,20.0,157.21,157.17,6.3624]
[1724684160799,20.0,157.21,157.16,23.17094113]
[1724684160976,26.361,157.21,157.16,23.17094113]
[1724684163301,6.361,157.21,157.16,23.17094113]
[1724684163793,6.3614,157.2,157.15,28.8258]
[1724684163982,20.0,157.19,157.15,22.4627]
[1724684164616,26.3617,157.19,157.15,15.9081]
[1724684164913,26.3617,157.19,157.14,6.4134]
[1724684165298,6.3614,157.2,157.14,6.4134]
[1724684165615,45.0,157.19,157.14,6.4134]
[1724684166184,6.361,157.21,157.15,6.3633]
[1724684166387,20.0,157.2,157.15,6.3633]
[1724684167207,20.0,157.2,157.16,6.3627]
[1724684167421,12.9306,157.27,157.16,12.45810485]
[1724684167580,35.22787814,157.31,157.23,6.3599]
[1724684167783,6.3577,157.29,157.23,6.3599]
[1724684168078,12.9306,157.31,157.24,6.3596]
[1724684168079,6.3576,157.3,157.24,6.3596]
[1724684168279,12.9306,157.31,157.22,17.17269671]
[1724684168280,12.9306,157.31,157.22,1.27189671]
[1724684168510,6.62843477,157.34,157.24,27.61240485]
[1724684168727,6.3553,157.35,157.28,22.1905]
[1724684169215,6.3553,157.35,157.28,28.5485]
[1724684169590,6.3548,157.36,157.28,22.1905]
[1724684169784,12.9306,157.39,157.32,15.891]
[1724684169985,6.354,157.39,157.31,15.1543]
[1724684170496,6.354,157.38,157.31,15.1543]
[1724684170704,6.3545,157.37,157.31,15.1543]
[1724684171097,15.8851,157.38,157.31,15.1543]
[1724684171306,6.3555,157.35,157.31,15.1543]
[1724684173634,6.3547,157.37,157.31,15.1543]
[1724684173793,20.0,157.36,157.31,15.1543]
[1724684174119,6.3553,157.35,157.31,15.1543]
[1724684176998,26.3548,157.36,157.31,15.1543]
[1724684177697,15.8813,157.42,157.31,31.0461]
[1724684177905,15.8813,157.42,157.31,37.4029]
[1724684177906,6.354,157.38,157.31,37.4029]
[1724684178106,26.3545,157.37,157.31,37.4029]
[1724684178296,6.3545,157.37,157.31,37.4029]
[1724684178501,6.3553,157.35,157.31,15.1543]
[1724684178923,6.3549,157.36,157.31,15.1543]
[1724684181829,6.3549,157.36,157.31,21.5111]
[1724684182004,6.3546,157.37,157.31,21.5111]
[1724684182208,20.0,157.36,157.31,21.5111]
[1724684183738,15.8782,157.45,157.32,7.83528517]
[1724684184049,19.6996382,157.47,157.35,15.8875]
[1724684184207,6.352,157.43,157.38,6.5642]
[1724684184527,6.352,157.43,157.38,7.8348219]
[1724684185220,20.0,157.42,157.38,6.5642]
[1724684186214,20.0,157.42,157.38,12.9179]
[1724684186408,20.8131925,157.47,157.38,12.9179]
[1724684186617,6.352,157.43,157.38,6.5642]
[1724684186811,26.3527,157.42,157.38,6.5642]
[1724684187143,6.3527,157.42,157.38,6.5642]
[1724684187426,20.8131925,157.47,157.38,6.5642]
[1724684187427,6.352,157.43,157.38,6.5642]
[1724684187958,20.0,157.42,157.38,6.5642]
[1724684190034,0.8131925,157.47,157.39,7.62424035]
[1724684190224,0.8131925,157.47,157.38,6.5642]
[1724684190225,6.3515,157.45,157.4,1.27048109]
[1724684190533,6.3508,157.46,157.4,7.62368109]
[1724684191033,6.3508,157.46,157.41,6.3527]
[1724684191529,0.8131925,157.47,157.45,6.3509]
[1724684191750,0.8131925,157.47,157.44,1.27010669]
[1724684193123,0.8131925,157.47,157.44,7.62130669]
[1724684194247,0.8131925,157.47,157.44,1.27010669]
[1724684194438,0.8131925,157.47,157.43,15.8794]
[1724684194831,0.8131925,157.47,157.43,22.2313]
[1724684195032,0.8131925,157.47,157.44,6.3515]
[1724684195476,0.8131925,157.47,157.43,15.8794]
[1724684195846,0.8131925,157.47,157.44,6.3512]
[1724684199158,0.8131925,157.47,157.43,22.2314]
[1724684200051,0.8131925,157.47,157.42,21.8506]
[1724684200232,7.1635925,157.47,157.42,21.8506]
[1724684201262,65.0,157.46,157.38,22.2025]
[1724684201457,6.3516,157.44,157.38,28.5564]
[1724684201671,65.0,157.46,157.38,22.2025]
[1724684201672,6.352,157.43,157.38,22.2025]
[1724684203171,6.3536,157.39,157.38,22.2025]
[1724684203467,15.8786,157.45,157.38,22.2025]
[1724684203670,65.0,157.44,157.34,22.2025]
[1724684204168,6.3536,157.39,157.34,28.558]
[1724684204460,15.8808,157.43,157.34,22.2025]
[1724684204666,65.0,157.42,157.35,1.2710701]
[1724684204833,65.0,157.42,157.34,22.2025]
[1724684205468,68.8837,157.42,157.3,15.8928]
[1724684205768,6.3549,157.36,157.3,22.2499]
[1724684207191,6.3549,157.36,157.31,1.27122102]
[1724684207397,6.3549,157.36,157.3,22.2499]
[1724684207562,65.0,157.42,157.31,1.27119765]
[1724684207759,65.0,157.42,157.3,15.8928]
[1724684207760,6.354,157.38,157.32,6.3564]
[1724684207964,20.0,157.37,157.32,6.3564]
[1724684209273,20.0,157.37,157.3,15.8928]
[1724684209274,20.0,157.37,157.29,22.2025]
[1724684209495,15.8849,157.39,157.29,22.2025]
[1724684209680,6.3549,157.36,157.31,6.3568]
[1724684209877,20.0,157.35,157.31,6.3564]
[1724684210079,65.0,157.38,157.31,6.3564]
[1724684210673,6.3549,157.36,157.31,6.3564]
[1724684210979,26.3554,157.35,157.29,44.453]
[1724684211173,26.3554,157.35,157.3,6.3572]
[1724684211560,6.3544,157.37,157.31,1.27120692]
[1724684211789,20.0,157.36,157.29,38.0957]
[1724684212175,20.0,157.36,157.31,6.3568]
[1724684213004,20.0,157.36,157.32,6.3564]
[1724684213189,20.0,157.36,157.32,7.62748851]
[1724684213695,20.0,157.36,157.33,1.27108851]
[1724684215978,20.0,157.36,157.32,6.3564]
[1724684216176,26.3549,157.36,157.29,38.0957]
[1724684216501,26.3549,157.36,157.31,6.3567]
[1724684216801,20.0,157.36,157.32,6.3562]
[1724684218382,6.3537,157.39,157.31,15.8915]
[1724684218583,12.9306,157.49,157.31,22.0204]
[1724684218784,6.3524,157.42,157.37,6.354]
[1724684219397,20.8131925,157.47,157.35,22.2425]
[1724684219810,6.3547,157.37,157.32,15.891]
[1724684219988,15.8826,157.41,157.32,22.2474]
[1724684220295,31.7586,157.44,157.31,22.0204]
[1724684220296,6.3561,157.33,157.31,22.0204]
[1724684220716,15.8866,157.37,157.27,6.3584]
[1724684220870,65.0,157.36,157.26,38.8779]
[1724684221073,65.0,157.36,157.27,6.3584]
[1724684221074,6.3563,157.33,157.27,6.3584]
[1724684221381,6.3569,157.31,157.26,22.9811]
[1724684221572,6.3576,157.29,157.26,22.9811]
[1724684221780,6.3582,157.28,157.22,15.9004]
[1724684222210,15.8891,157.34,157.22,15.9004]
[1724684222396,65.0,157.33,157.22,15.9004]
[1724684222586,71.3562,157.33,157.27,6.3584]
[1724684222787,26.3564,157.32,157.25,22.2571]
[1724684223518,6.3569,157.31,157.25,22.2571]
[1724684223693,20.0,157.3,157.25,22.2571]
[1724684224411,20.0,157.3,157.26,7.63030565]
[1724684224616,26.3564,157.32,157.26,7.63030565]
[1724684224809,26.3564,157.32,157.26,6.3587]
[1724684225394,20.0,157.32,157.27,6.3582]
[1724684225594,15.8859,157.38,157.28,29.84050217]
[1724684225595,6.3556,157.35,157.28,29.84050217]
[1724684225830,6.3557,157.34,157.28,29.84050217]
[1724684226424,6.3557,157.34,157.28,28.5691]
[1724684226592,6.3557,157.34,157.28,22.2115]
[1724684226791,15.8881,157.35,157.28,22.2115]
[1724684227015,6.3568,157.32,157.25,15.8982]
[1724684227901,6.3568,157.32,157.26,6.3585]
[1724684228420,20.0,157.34,157.25,15.8982]
[1724684228592,6.3577,157.29,157.23,29.6244]
[1724684229013,6.3572,157.3,157.24,6.3594]
[1724684229609,6.3572,157.3,157.25,6.3592]
[1724684230005,6.3569,157.31,157.25,6.3592]
[1724684230208,20.0,157.3,157.25,6.3592]
[1724684231099,20.0,157.3,157.26,6.3587]
[1724684231298,20.0,157.31,157.25,15.8976]
[1724684231508,6.3557,157.34,157.28,6.3579]
[1724684232296,15.8853,157.38,157.28,6.3579]
[1724684232297,6.3561,157.33,157.28,6.3579]
[1724684232709,20.0,157.32,157.28,6.3579]
[1724684233699,20.0,157.32,157.25,6.3592]
[1724684233912,6.3572,157.31,157.25,6.3589]
[1724684234233,19.56225404,157.39,157.23,29.6244]
[1724684234234,6.3581,157.28,157.23,29.6244]
[1724684235013,65.0,157.3,157.23,23.2644]
[1724684235014,6.3585,157.27,157.23,23.2644]
[1724684235216,65.0,157.3,157.23,23.2644]
[1724684235217,6.3591,157.26,157.23,23.2644]
[1724684235408,6.3593,157.25,157.18,15.9047]
[1724684235833,6.3589,157.26,157.2,6.3612]
[1724684236128,26.3573,157.3,157.24,6.3596]
[1724684236623,6.358,157.28,157.22,22.2611]
[1724684236834,20.0,157.27,157.22,22.2611]
[1724684237537,20.0,157.27,157.23,6.3599]
[1724684239241,20.0,157.27,157.22,22.261]
[1724684239425,26.3585,157.27,157.22,22.261]
[1724684240313,26.3585,157.27,157.22,15.9007]
[1724684240526,26.3585,157.27,157.22,22.2611]
[1724684240828,6.3585,157.27,157.22,22.2611]
[1724684241231,20.0,157.26,157.22,15.9007]
[1724684241737,26.359,157.26,157.22,15.9007]
[1724684242033,20.0,157.26,157.19,15.9037]
[1724684242208,45.0,157.25,157.19,15.9037]
[1724684242933,6.3599,157.24,157.19,22.2653]
[1724684244125,51.3594,157.25,157.19,22.2653]
[1724684245132,6.359,157.26,157.21,6.3606]
[1724684245722,20.0,157.25,157.21,6.3606]
[1724684246121,20.0,157.25,157.22,6.3604]
[1724684246323,20.0,157.26,157.22,6.3604]
[1724684246539,20.0,157.26,157.21,22.2625]
[1724684246841,26.3591,157.26,157.21,22.2625]
[1724684250722,26.3591,157.26,157.17,21.9354]
[1724684250723,6.3594,157.25,157.19,6.3613]
[1724684250921,6.3594,157.25,157.2,6.3612]
[1724684251416,26.3589,157.26,157.21,6.3609]
[1724684251621,6.3589,157.26,157.21,6.3609]
[1724684251832,20.0,157.25,157.21,6.3609]
[1724684253244,26.3593,157.25,157.2,22.264]
[1724684253525,6.3598,157.24,157.2,15.9028]
[1724684253725,65.0,157.23,157.17,21.9354]
[1724684253918,6.3606,157.22,157.17,28.2979]
[1724684254132,6.3609,157.21,157.15,12.99072702]
[1724684254351,20.0,157.21,157.16,6.3628]
[1724684255838,20.0,157.21,157.17,6.3624]
[1724684256137,20.0,157.22,157.17,6.3624]
[1724684257339,20.0,157.22,157.17,22.268]
[1724684257529,6.3597,157.24,157.17,15.9056]
[1724684258558,6.3597,157.24,157.19,6.3616]
[1724684259030,20.0,157.23,157.19,6.3616]
[1724684259232,12.9306,157.29,157.2,6.3613]
[1724684259432,6.3595,157.25,157.19,6.3616]
[1724684259643,20.0,157.24,157.19,6.3616]
[1724684260230,20.0,157.27,157.19,6.3616]
[1724684260425,6.3597,157.24,157.19,6.3616]
[1724684260737,20.0,157.23,157.19,6.3616]
[1724684261550,20.0,157.23,157.2,6.3611]
[1724684261728,20.0,157.24,157.2,6.3611]
[1724684262557,20.0,157.24,157.19,22.2654]
[1724684263084,20.0,157.24,157.2,6.3612]
[1724684263753,20.0,157.24,157.19,22.2654]
[1724684264733,20.0,157.24,157.21,6.3609]
[1724684265047,20.0,157.24,157.2,6.3612]
[1724684265233,20.0,157.25,157.2,6.3612]
[1724684265557,26.3593,157.25,157.2,6.3612]
[1724684267666,26.3593,157.25,157.19,15.9038]
[1724684267667,20.0,157.25,157.19,6.3616]
[1724684267866,20.0,157.27,157.19,15.9034]
[1724684268075,45.0,157.26,157.19,15.9034]
[1724684268244,20.0,157.25,157.19,15.9034]
[1724684268442,26.3593,157.25,157.2,6.361]
[1724684271264,26.3593,157.25,157.19,15.9034]
[1724684271447,6.36,157.24,157.19,15.9034]
[1724684271644,6.36,157.24,157.19,22.2651]
[1724684273287,26.3594,157.25,157.19,22.2651]
[1724684274988,20.0,157.25,157.19,15.9034]
[1724684275479,6.358,157.29,157.23,6.3597]
[1724684275779,6.61941421,157.3,157.23,6.3597]
[1724684275780,6.3574,157.3,157.25,6.3591]
[1724684275987,6.3574,157.3,157.24,6.3596]
[1724684276481,16.8143,157.33,157.24,6.3596]
[1724684276482,6.3577,157.29,157.24,6.3596]
[1724684276783,20.0,157.28,157.24,6.3596]
[1724684276968,20.0,157.28,157.23,15.8999]
[1724684277279,16.8143,157.33,157.23,22.2599]
[1724684277280,6.3577,157.29,157.23,22.2599]
[1724684277482,20.0,157.28,157.23,22.2599]
[1724684277964,26.3581,157.28,157.23,22.2599]
[1724684278162,6.3585,157.27,157.22,6.3604]
[1724684278366,6.3585,157.27,157.21,6.3607]
[1724684278754,26.3589,157.26,157.21,6.3607]
[1724684278954,20.0,157.26,157.21,6.3607]
[1724684279287,26.3585,157.27,157.22,6.3604]
[1724684279963,20.0,157.27,157.22,6.3604]
[1724684280155,20.0,157.27,157.24,22.2582]
[1724684280353,6.3576,157.3,157.24,22.2582]
[1724684280687,20.0,157.29,157.21,15.9019]
[1724684280999,6.3585,157.27,157.22,6.3604]
[1724684281786,6.3585,157.27,157.21,22.2627]
[1724684282297,6.3589,157.26,157.21,22.2627]
[1724684283382,35.8917,157.32,157.21,15.9019]
[1724684283568,6.3577,157.29,157.21,15.9019]
[1724684283770,20.0,157.28,157.21,15.9019]
[1724684284475,20.0,157.28,157.24,6.3596]
[1724684284675,20.0,157.28,157.25,6.3591]
[1724684284872,20.0,157.29,157.25,6.3591]
[1724684285073,20.0,157.29,157.26,1.27175068]
[1724684285301,26.3568,157.32,157.26,6.3587]
[1724684285509,6.3569,157.31,157.26,6.3587]
[1724684285807,6.3565,157.32,157.27,6.3583]
[1724684286798,6.3565,157.32,157.26,28.4321]
[1724684287100,20.0,157.31,157.27,6.3584]
[1724684288903,22.29194738,157.36,157.29,6.3573]
[1724684289104,6.3559,157.34,157.29,6.3573]
[1724684289281,20.0,157.33,157.29,6.3573]
[1724684289479,20.0,157.33,157.28,6.3579]
[1724684290002,26.3562,157.33,157.28,6.3579]
[1724684290206,6.3566,157.32,157.27,22.2541]
[1724684292786,6.3566,157.32,157.27,15.8958]
[1724684293201,6.3568,157.31,157.27,15.8958]
[1724684293608,6.3566,157.32,157.27,15.8958]
[1724684293790,20.0,157.31,157.27,15.8958]
[1724684294703,26.357,157.31,157.27,15.8958]
[1724684294884,6.3575,157.3,157.26,22.0734]
[1724684295215,26.357,157.31,157.26,22.0734]
[1724684295381,26.357,157.31,157.26,28.4322]
[1724684296395,20.0,157.31,157.27,6.3584]
[1724684300812,20.0,157.31,157.28,6.358]
[1724684301112,20.0,157.32,157.28,6.358]
[1724684302201,26.3564,157.32,157.28,6.358]
[1724684302587,26.3564,157.32,157.27,6.3583]
[1724684303823,22.29194738,157.39,157.28,1.27149177]
[1724684304035,6.3543,157.38,157.32,22.2472]
[1724684304528,6.3548,157.36,157.32,15.8911]
[1724684305014,15.8855,157.38,157.29,22.2508]
[1724684305223,6.356,157.34,157.29,15.8935]
[1724684305423,20.0,157.33,157.29,15.8935]
[1724684305718,26.3561,157.33,157.29,15.8935]
[1724684307018,26.3561,157.33,157.28,6.3579]
[1724684307609,6.3565,157.32,157.27,6.3583]
[1724684308495,20.0,157.33,157.27,6.3583]
[1724684308496,26.3561,157.33,157.27,6.3583]
[1724684308695,26.3561,157.33,157.28,6.358]
[1724684308929,20.0,157.33,157.28,15.8948]
[1724684309614,20.0,157.33,157.29,6.3573]
[1724684309815,6.3545,157.37,157.3,15.8922]
[1724684310030,6.3545,157.37,157.31,1.27116459]
[1724684310894,6.3541,157.38,157.32,28.4577]
[1724684311093,6.3541,157.38,157.33,7.62695644]
[1724684311299,20.0,157.37,157.33,7.62695644]
[1724684311606,20.0,157.37,157.33,6.3559]
[1724684312008,6.3535,157.4,157.35,6.3552]
[1724684312205,15.882,157.42,157.32,22.1016]
[1724684312841,15.882,157.42,157.33,6.3558]
[1724684313214,6.3539,157.39,157.33,6.3558]
[1724684313411,20.0,157.41,157.33,6.3558]
[1724684313412,26.3541,157.38,157.33,6.3558]
[1724684313630,6.3536,157.39,157.34,6.3556]
[1724684314024,20.0,157.38,157.34,6.3556]
[1724684314606,20.0,157.38,157.33,6.3559]
[1724684315225,26.3541,157.38,157.33,6.3559]
[1724684315718,20.0,157.38,157.33,15.8892]
[1724684315927,20.0,157.39,157.33,15.8892]
[1724684316238,26.3538,157.39,157.34,6.3555]
[1724684316742,20.0,157.39,157.35,6.3549]
[1724684317238,6.3523,157.43,157.37,6.3543]
[1724684317621,6.3525,157.42,157.37,6.3543]
[1724684317815,6.352,157.44,157.38,6.3538]
[1724684318027,6.352,157.44,157.38,27.8672]
[1724684318515,6.352,157.43,157.38,27.8672]
[1724684318721,6.3528,157.41,157.37,15.8856]
[1724684319443,6.3533,157.4,157.35,6.3551]
[1724684319821,15.8796,157.44,157.34,43.7574]
[1724684320145,65.0,157.43,157.34,43.7574]
[1724684320942,65.0,157.43,157.34,37.4018]
[1724684321314,20.0,157.43,157.36,15.8864]
[1724684321548,26.3523,157.43,157.37,6.3543]
[1724684321718,6.3524,157.42,157.37,6.3543]
[1724684321933,20.0,157.41,157.37,6.3543]
[1724684322259,6.3513,157.45,157.4,6.3531]
[1724684322464,0.8131925,157.47,157.39,22.5073]
[1724684322639,6.3523,157.43,157.39,22.5073]
[1724684322842,15.878,157.46,157.39,22.5073]
[1724684323142,6.3531,157.41,157.39,22.5073]
[1724684323748,6.3531,157.41,157.36,6.3546]
[1724684325459,15.878,157.46,157.35,38.7541]
[1724684325645,6.352,157.44,157.38,6.3538]
[1724684326154,20.0,157.43,157.38,6.3538]
[1724684326357,26.3523,157.43,157.37,22.2398]
[1724684328344,6.3525,157.42,157.37,22.2398]
[1724684328666,26.352,157.43,157.38,6.354]
[1724684329036,20.0,157.43,157.38,6.354]
[1724684329467,26.3521,157.43,157.38,6.354]
[1724684329671,20.0,157.43,157.39,15.8836]
[1724684329840,6.3513,157.45,157.4,7.62350556]
[1724684330183,20.0,157.44,157.4,6.3531]
[1724684330471,20.0,157.44,157.39,22.2371]
[1724684331041,20.0,157.44,157.39,15.8836]
[1724684331244,20.8131925,157.47,157.39,15.8836]
[1724684332338,6.3517,157.44,157.39,22.2371]
[1724684332875,20.8131925,157.47,157.4,6.3528]
[1724684333071,45.0,157.46,157.4,6.3528]
[1724684333272,20.0,157.45,157.4,6.3528]
[1724684333771,6.3515,157.45,157.4,6.3528]
[1724684333971,20.0,157.44,157.4,6.3528]
[1724684334184,20.0,157.44,157.41,1.27038988]
[1724684335243,20.0,157.44,157.42,21.9256]
[1724684335446,0.8131925,157.47,157.42,21.9256]
[1724684335680,6.3511,157.46,157.42,21.9256]
[1724684335851,26.3512,157.45,157.42,21.9256]
[1724684340060,20.0,157.45,157.42,21.9256]
[1724684340281,0.8131925,157.47,157.42,21.9256]
[1724684340582,7.1638925,157.47,157.42,28.2777]
[1724684340771,20.0,157.46,157.42,28.2777]
[1724684340969,20.0,157.46,157.42,21.9256]
[1724684341160,26.3508,157.46,157.42,21.9256]
[1724684341665,6.3512,157.45,157.42,21.9256]
[1724684342994,6.3517,157.44,157.42,21.9256]
[1724684343195,20.0,157.46,157.38,21.9917]
[1724684343196,6.3536,157.39,157.38,21.9917]
[1724684343397,6.3529,157.41,157.38,21.9917]
[1724684343566,20.0,157.46,157.38,21.9917]
[1724684343765,45.0,157.45,157.38,21.9917]
[1724684343971,20.0,157.44,157.4,6.3532]
[1724684344170,26.3511,157.46,157.4,6.3532]
[1724684344372,6.3513,157.45,157.39,22.2371]
[1724684344589,20.0,157.44,157.39,22.2371]
[1724684344788,20.0,157.44,157.4,6.3531]
[1724684345398,20.0,157.44,157.41,6.3528]
[1724684345724,26.3514,157.45,157.4,6.3531]
[1724684346601,20.0,157.45,157.39,15.8835]
[1724684346807,20.0,157.46,157.42,6.352]
[1724684347105,6.351,157.46,157.41,15.8811]
[1724684347283,20.0,157.45,157.41,15.8811]
[1724684348480,20.0,157.45,157.41,22.2338]
[1724684350495,20.0,157.45,157.42,6.3523]
[1724684350694,0.8131925,157.47,157.42,6.3523]
[1724684351493,7.1637925,157.47,157.42,6.3523]
[1724684351815,20.0,157.46,157.42,6.3523]
[1724684352810,26.3508,157.46,157.41,22.2338]
[1724684353893,6.3512,157.45,157.41,15.8811]
[1724684355608,6.3512,157.45,157.41,22.2339]
[1724684356197,20.0,157.46,157.42,6.3523]
[1724684356395,26.351,157.46,157.41,22.2337]
[1724684360125,20.0,157.46,157.41,15.8811]
[1724684360325,0.8131925,157.47,157.44,15.8786]
[1724684360707,0.8131925,157.47,157.42,22.3035]
[1724684360708,7.1636925,157.47,157.42,22.3035]
[1724684361603,0.8131925,157.47,157.42,22.3035]
[1724684362139,0.8131925,157.47,157.43,6.3517]
[1724684362306,20.8131925,157.47,157.43,6.3517]
[1724684362500,0.8131925,157.47,157.43,6.3517]
[1724684362700,0.8131925,157.47,157.44,7.62164667]
[1724684363324,0.8131925,157.47,157.45,1.27002265]
[1724684364633,0.8131925,157.47,157.46,1.27002145]
[1724684365140,0.8131925,157.47,157.46,21.4623]
[1724684365439,0.8131925,157.47,157.46,22.73209137]
[1724684365731,0.8131925,157.47,157.46,72.8131]
[1724684366337,22.26738344,157.52,157.49,6.3492]
[1724684366643,22.26738344,157.52,157.5,15.8723]
[1724684367135,6.3468,157.56,157.51,6.3488]
[1724684367740,6.3468,157.56,157.5,22.2213]
[1724684368120,6.3468,157.56,157.51,6.3487]
[1724684368437,20.0,157.55,157.52,1.26942417]
[1724684368647,12.9306,157.6,157.48,12.41691414]
[1724684368835,6.3464,157.57,157.53,15.8695]
[1724684369133,6.3464,157.57,157.51,6.3486]
[1724684369634,34.25374071,157.61,157.51,6.3486]
[1724684369635,6.347,157.56,157.51,6.3486]
[1724684370008,20.0,157.55,157.51,6.3486]
[1724684373245,6.3469,157.56,157.51,6.3486]
[1724684373448,6.3463,157.58,157.52,6.348]
[1724684373625,20.0,157.57,157.52,6.348]
[1724684373821,26.3465,157.57,157.52,6.348]
[1724684376147,26.3465,157.57,157.5,15.8724]
[1724684376330,26.3465,157.57,157.53,6.3479]
[1724684376543,20.0,157.57,157.53,6.3479]
[1724684376840,6.3448,157.61,157.56,6.3466]
[1724684377022,6.3448,157.61,157.57,1.26910009]
[1724684377218,6.3448,157.61,157.56,6.3466]
[1724684378237,20.0,157.6,157.57,6.3461]
[1724684378435,20.0,157.61,157.57,6.3461]
[1724684381342,26.3448,157.61,157.56,6.3466]
[1724684381558,6.3452,157.6,157.55,15.8674]
[1724684381855,6.3452,157.6,157.55,22.2144]
[1724684382065,6.3452,157.6,157.56,1.2691426]
[1724684383564,6.3452,157.6,157.55,22.2144]
[1724684383739,6.3452,157.6,157.56,1.26912523]
[1724684385871,6.3452,157.6,157.55,22.2144]
[1724684386034,6.3457,157.59,157.55,15.8674]
[1724684386430,6.3457,157.59,157.55,17.13663115]
[1724684387031,6.3457,157.59,157.55,15.8674]
[1724684387436,6.3457,157.59,157.55,17.13663114]
[1724684388168,6.3453,157.6,157.55,23.48363114]
[1724684389463,6.3453,157.6,157.55,22.2144]
[1724684389666,6.3449,157.61,157.56,7.61582444]
[1724684389838,6.3449,157.61,157.57,6.3463]
[1724684390038,0.8131925,157.63,157.58,1.26898029]
[1724684390039,7.1574925,157.63,157.58,1.26898029]
[1724684390339,26.3444,157.62,157.57,22.2119]
[1724684390540,20.0,157.62,157.58,6.3457]
[1724684390959,7.1572925,157.63,157.58,6.3457]
[1724684391466,7.1572925,157.63,157.57,15.8657]
[1724684391670,7.1572925,157.63,157.58,6.3458]
[1724684392352,6.3445,157.62,157.57,22.2119]
[1724684394971,7.1571925,157.63,157.58,6.3459]
[1724684395274,6.3443,157.62,157.57,22.2119]
[1724684396141,6.3447,157.61,157.57,15.8657]
[1724684397393,0.8131925,157.63,157.59,15.8635]
[1724684397760,0.8131925,157.63,157.62,6.3443]
[1724684398386,0.8131925,157.63,157.61,15.8616]
[1724684398878,0.8131925,157.63,157.61,22.2062]
[1724684399185,0.8131925,157.63,157.59,6.3452]
[1724684399387,0.8131925,157.63,157.6,6.3451]
[1724684399556,0.8131925,157.63,157.61,6.3447]
[1724684399757,0.8131925,157.63,157.62,6.3443]
[1724684400373,0.8131925,157.63,157.61,6.3446]
[1724684400658,0.8131925,157.63,157.62,6.3443]
[1724684401160,0.8131925,157.63,157.6,15.8626]
[1724684401360,0.8131925,157.63,157.58,22.4974]
[1724684401562,6.3444,157.62,157.57,22.2116]
[1724684401777,20.0,157.61,157.54,21.4568]
[1724684402412,0.8131925,157.63,157.54,21.4568]
[1724684402612,6.3452,157.6,157.54,27.8043]
[1724684402812,6.3452,157.6,157.55,6.3471]
[1724684402989,6.3456,157.59,157.53,15.8693]
[1724684403190,6.3464,157.57,157.5,15.8727]
[1724684403489,18.73404929,157.58,157.52,6.3483]
[1724684404081,6.346,157.58,157.52,6.3483]
[1724684404506,13.7435,157.61,157.49,22.8922]
[1724684404711,26.3455,157.6,157.54,6.3475]
[1724684404915,6.3457,157.59,157.54,22.2159]
[1724684405709,6.3448,157.61,157.55,6.3471]
[1724684405914,6.3455,157.6,157.54,22.2156]
[1724684406311,6.3448,157.61,157.54,15.8684]
[1724684406611,6.3452,157.6,157.54,22.2159]